[Event "Titled Tuesday Blitz May 24 Late 2022"]
[White "Clawitter, Craig"]
[Black "Bibasa, Bob"]
[WhiteFideId "2023105"]
[BlackFideId "10000240"]
[WhiteElo "2216"]
[BlackElo "2032"]
[Result "0-1"]
[Round "04"]
[TimeControl "180+1"]
[Date "2022.05.25"]
[WhiteClock "0:00:01"]
[BlackClock "0:00:45"]

1. e4 {[%clk 0:03:00]}  c5 {[%clk 0:03:00]} 2. Nf3 {[%clk 0:02:58]}  d6 {[%clk 0:03:00]} 3. d4 {[%clk 0:02:59]}  cxd4 {[%clk 0:03:01]} 4. Nxd4 {[%clk 0:03:00]}  Nf6 {[%clk 0:03:02]} 5. Nc3 {[%clk 0:03:00]}  a6 {[%clk 0:03:02]} 6. Be3 {[%clk 0:03:00]}  e5 {[%clk 0:03:03]} 7. Nb3 {[%clk 0:03:01]}  Be6 {[%clk 0:03:03]} 8. f3 {[%clk 0:03:00]}  Be7 {[%clk 0:03:03]} 9. Qd2 {[%clk 0:03:01]}  h5 {[%clk 0:03:04]} 10. Nd5 {[%clk 0:02:58]}  Nxd5 {[%clk 0:03:03]} 11. exd5 {[%clk 0:02:59]}  Bf5 {[%clk 0:03:04]} 12. Be2 {[%clk 0:02:57]}  Nd7 {[%clk 0:03:03]} 13. O-O {[%clk 0:02:56]}  O-O {[%clk 0:03:02]} 14. c4 {[%clk 0:02:48]}  a5 {[%clk 0:02:58]} 15. Rac1 {[%clk 0:02:46]}  a4 {[%clk 0:02:58]} 16. Na1 {[%clk 0:02:46]}  Nc5 {[%clk 0:02:52]} 17. Nc2 {[%clk 0:02:39]}  Bf6 {[%clk 0:02:39]} 18. Bxc5 {[%clk 0:02:15]}  dxc5 {[%clk 0:02:38]} 19. Ne3 {[%clk 0:02:16]}  Bg6 {[%clk 0:02:35]} 20. Bd3 {[%clk 0:02:06]}  Bxd3 {[%clk 0:02:32]} 21. Qxd3 {[%clk 0:02:06]}  Bg5 {[%clk 0:02:31]} 22. Rce1 {[%clk 0:01:58]}  g6 {[%clk 0:02:24]} 23. Re2 {[%clk 0:01:53]}  Qd6 {[%clk 0:02:17]} 24. Rfe1 {[%clk 0:01:52]}  Rae8 {[%clk 0:02:17]} 25. Nf1 {[%clk 0:01:47]}  Kg7 {[%clk 0:02:10]} 26. Qa3 {[%clk 0:01:37]}  b5 {[%clk 0:01:53]} 27. cxb5 {[%clk 0:01:31]}  Qxd5 {[%clk 0:01:53]} 28. Qxa4 {[%clk 0:01:16]}  f5 {[%clk 0:01:51]} 29. b6 {[%clk 0:01:03]}  c4 {[%clk 0:01:41]} 30. Qb4 {[%clk 0:00:36]}  Be7 {[%clk 0:01:15]} 31. Qc3 {[%clk 0:00:35]}  Bc5+ {[%clk 0:01:13]} 32. Ne3 {[%clk 0:00:35]}  f4 {[%clk 0:01:11]} 33. Rd2 {[%clk 0:00:20]}  Qe6 {[%clk 0:01:03]} 34. Kh1 {[%clk 0:00:10]}  Bxe3 {[%clk 0:01:03]} 35. Rc2 {[%clk 0:00:06]}  Qxb6 {[%clk 0:01:01]} 36. Qxc4 {[%clk 0:00:06]}  Kh6 {[%clk 0:01:01]} 37. Qe4 {[%clk 0:00:05]}  Qd4 {[%clk 0:00:57]} 38. Qb7 {[%clk 0:00:01]}  Rb8 {[%clk 0:00:45]} 0-1


[Site "https://www.chess.com"]

[Event "Titled Tuesday Blitz May 24 Late 2022"]
[White "D`Arruda, Ricardo D."]
[Black "Kujawski, Adam"]
[WhiteFideId "100692"]
[BlackFideId "1100920"]
[WhiteElo "2497"]
[BlackElo "1982"]
[Result "0-1"]
[Round "04"]
[TimeControl "180+1"]
[Date "2022.05.25"]
[WhiteClock "0:00:19"]
[BlackClock "0:00:25"]

1. c3 {[%clk 0:00:17]}  d5 {[%clk 0:02:56]} 2. d4 {[%clk 0:00:18]}  e6 {[%clk 0:02:55]} 3. Nf3 {[%clk 0:00:19]}  c5 {[%clk 0:02:55]} 4. e3 {[%clk 0:00:19]}  Nc6 {[%clk 0:02:55]} 5. Be2 {[%clk 0:00:19]}  Nf6 {[%clk 0:02:56]} 6. O-O {[%clk 0:00:19]}  Bd6 {[%clk 0:02:56]} 7. Nbd2 {[%clk 0:00:20]}  O-O {[%clk 0:02:56]} 8. dxc5 {[%clk 0:00:20]}  Bxc5 {[%clk 0:02:56]} 9. Nd4 {[%clk 0:00:21]}  e5 {[%clk 0:02:55]} 10. N4b3 {[%clk 0:00:21]}  Bb6 {[%clk 0:02:55]} 11. c4 {[%clk 0:00:22]}  d4 {[%clk 0:02:53]} 12. c5 {[%clk 0:00:21]}  Bc7 {[%clk 0:02:53]} 13. Nc4 {[%clk 0:00:22]}  Be6 {[%clk 0:02:46]} 14. exd4 {[%clk 0:00:22]}  exd4 {[%clk 0:02:43]} 15. Bg5 {[%clk 0:00:23]}  h6 {[%clk 0:02:39]} 16. Bh4 {[%clk 0:00:22]}  Bxc4 {[%clk 0:02:31]} 17. Bxc4 {[%clk 0:00:19]}  Ne5 {[%clk 0:02:32]} 18. Be2 {[%clk 0:00:19]}  d3 {[%clk 0:02:30]} 19. Bf3 {[%clk 0:00:20]}  Rb8 {[%clk 0:02:09]} 20. Bg3 {[%clk 0:00:20]}  Nxf3+ {[%clk 0:02:00]} 21. Qxf3 {[%clk 0:00:19]}  Bxg3 {[%clk 0:02:01]} 22. hxg3 {[%clk 0:00:18]}  Qd5 {[%clk 0:02:01]} 23. Rfd1 {[%clk 0:00:18]}  Rfd8 {[%clk 0:01:55]} 24. Qxd5 {[%clk 0:00:17]}  Rxd5 {[%clk 0:01:55]} 25. f3 {[%clk 0:00:18]}  b6 {[%clk 0:01:53]} 26. cxb6 {[%clk 0:00:16]}  axb6 {[%clk 0:01:54]} 27. Rd2 {[%clk 0:00:17]}  Ra8 {[%clk 0:01:42]} 28. Rad1 {[%clk 0:00:18]}  Rxa2 {[%clk 0:01:41]} 29. Rxd3 {[%clk 0:00:18]}  Rxd3 {[%clk 0:01:41]} 30. Rxd3 {[%clk 0:00:19]}  Rxb2 {[%clk 0:01:41]} 31. Nd4 {[%clk 0:00:20]}  b5 {[%clk 0:01:35]} 32. Rb3 {[%clk 0:00:19]}  Rxb3 {[%clk 0:01:35]} 33. Nxb3 {[%clk 0:00:20]}  Kf8 {[%clk 0:01:35]} 34. Kf2 {[%clk 0:00:21]}  Ke7 {[%clk 0:01:35]} 35. Ke3 {[%clk 0:00:22]}  Kd6 {[%clk 0:01:35]} 36. Kd4 {[%clk 0:00:23]}  Nh5 {[%clk 0:01:28]} 37. g4 {[%clk 0:00:22]}  Nf4 {[%clk 0:01:28]} 38. g3 {[%clk 0:00:22]}  Ne2+ {[%clk 0:01:28]} 39. Ke3 {[%clk 0:00:21]}  Nc3 {[%clk 0:00:57]} 40. Nd4 {[%clk 0:00:22]}  Kc5 {[%clk 0:00:49]} 41. Kd3 {[%clk 0:00:22]}  Nd5 {[%clk 0:00:31]} 42. Nf5 {[%clk 0:00:23]}  b4 {[%clk 0:00:31]} 43. Nxg7 {[%clk 0:00:22]}  b3 {[%clk 0:00:31]} 44. Nf5 {[%clk 0:00:23]}  Kb4 {[%clk 0:00:27]} 45. Nxh6 {[%clk 0:00:20]}  b2 {[%clk 0:00:26]} 46. Kc2 {[%clk 0:00:19]}  Ka3 {[%clk 0:00:26]} 47. Nf5 {[%clk 0:00:20]}  Ka2 {[%clk 0:00:26]} 48. Nd4 {[%clk 0:00:19]}  b1=Q+ {[%clk 0:00:25]} 0-1


[Site "https://www.chess.com"]

[Event "Titled Tuesday Blitz May 24 Late 2022"]
[White "De Souza, Regis Gabetta"]
[Black "Rustemov, Alexander"]
[WhiteFideId "22756930"]
[BlackFideId "4119002"]
[WhiteElo "1926"]
[BlackElo "2849"]
[Result "0-1"]
[Round "04"]
[TimeControl "180+1"]
[Date "2022.05.24"]
[WhiteClock "0:00:01"]
[BlackClock "0:00:11"]

1. d4 {[%clk 0:03:00]}  f5 {[%clk 0:02:59]} 2. c4 {[%clk 0:02:58]}  Nf6 {[%clk 0:02:59]} 3. g3 {[%clk 0:02:59]}  g6 {[%clk 0:02:59]} 4. Bg2 {[%clk 0:02:59]}  Bg7 {[%clk 0:03:00]} 5. Nc3 {[%clk 0:02:59]}  d6 {[%clk 0:03:00]} 6. e4 {[%clk 0:02:52]}  fxe4 {[%clk 0:02:56]} 7. Nxe4 {[%clk 0:02:53]}  Nxe4 {[%clk 0:02:48]} 8. Bxe4 {[%clk 0:02:54]}  O-O {[%clk 0:02:48]} 9. Ne2 {[%clk 0:02:43]}  Nc6 {[%clk 0:02:45]} 10. O-O {[%clk 0:02:41]}  Bh3 {[%clk 0:02:44]} 11. Re1 {[%clk 0:02:34]}  Bg4 {[%clk 0:02:38]} 12. Be3 {[%clk 0:02:22]}  e5 {[%clk 0:02:02]} 13. d5 {[%clk 0:02:02]}  Nd4 {[%clk 0:01:59]} 14. Bxd4 {[%clk 0:02:00]}  exd4 {[%clk 0:02:00]} 15. Qd3 {[%clk 0:01:58]}  Qf6 {[%clk 0:01:54]} 16. Rf1 {[%clk 0:01:27]}  Bh3 {[%clk 0:01:54]} 17. Bg2 {[%clk 0:01:26]}  Bf5 {[%clk 0:01:52]} 18. Qb3 {[%clk 0:01:21]}  d3 {[%clk 0:01:38]} 19. Nf4 {[%clk 0:01:21]}  Qxb2 {[%clk 0:01:37]} 20. Rad1 {[%clk 0:01:21]}  Qxb3 {[%clk 0:01:26]} 21. axb3 {[%clk 0:01:22]}  a5 {[%clk 0:01:22]} 22. Nxd3 {[%clk 0:01:21]}  g5 {[%clk 0:01:16]} 23. Rfe1 {[%clk 0:01:10]}  Bc3 {[%clk 0:01:08]} 24. Re7 {[%clk 0:01:07]}  Rf7 {[%clk 0:01:07]} 25. Rxf7 {[%clk 0:01:06]}  Kxf7 {[%clk 0:01:05]} 26. h3 {[%clk 0:00:56]}  a4 {[%clk 0:01:05]} 27. bxa4 {[%clk 0:00:53]}  Rxa4 {[%clk 0:01:06]} 28. g4 {[%clk 0:00:52]}  Bg6 {[%clk 0:01:00]} 29. f4 {[%clk 0:00:40]}  gxf4 {[%clk 0:00:55]} 30. Nxf4 {[%clk 0:00:38]}  Bc2 {[%clk 0:00:54]} 31. Rf1 {[%clk 0:00:28]}  Ke7 {[%clk 0:00:50]} 32. Rc1 {[%clk 0:00:24]}  Bd4+ {[%clk 0:00:49]} 33. Kh1 {[%clk 0:00:25]}  Rxc4 {[%clk 0:00:49]} 34. Ne6 {[%clk 0:00:24]}  Bb6 {[%clk 0:00:46]} 35. Re1 {[%clk 0:00:22]}  Kf6 {[%clk 0:00:43]} 36. Rf1+ {[%clk 0:00:20]}  Ke7 {[%clk 0:00:40]} 37. Re1 {[%clk 0:00:19]}  Ba5 {[%clk 0:00:35]} 38. Rf1 {[%clk 0:00:15]}  c6 {[%clk 0:00:30]} 39. Ng5 {[%clk 0:00:13]}  Bg6 {[%clk 0:00:24]} 40. Ra1 {[%clk 0:00:12]}  Bc3 {[%clk 0:00:23]} 41. Ra7 {[%clk 0:00:10]}  cxd5 {[%clk 0:00:20]} 42. Rxb7+ {[%clk 0:00:10]}  Kf6 {[%clk 0:00:21]} 43. Nf3 {[%clk 0:00:09]}  d4 {[%clk 0:00:18]} 44. g5+ {[%clk 0:00:09]}  Ke6 {[%clk 0:00:17]} 45. h4 {[%clk 0:00:08]}  d3 {[%clk 0:00:17]} 46. Bh3+ {[%clk 0:00:08]}  Kd5 {[%clk 0:00:17]} 47. Bg2 {[%clk 0:00:06]}  Be4 {[%clk 0:00:16]} 48. Rb5+ {[%clk 0:00:05]}  Rc5 {[%clk 0:00:16]} 49. Rb1 {[%clk 0:00:03]}  Kc4 {[%clk 0:00:12]} 50. Kg1 {[%clk 0:00:02]}  d2 {[%clk 0:00:12]} 51. Rd1 {[%clk 0:00:02]}  Kd3 {[%clk 0:00:11]} 52. Bf1+ {[%clk 0:00:01]}  Kc2 {[%clk 0:00:11]} 53. Be2 {[%clk 0:00:01]}  Bxf3 {[%clk 0:00:10]} 54. Bxf3 {[%clk 0:00:02]}  Re5 {[%clk 0:00:10]} 55. Kf2 {[%clk 0:00:01]}  Re1 {[%clk 0:00:11]} 0-1


[Site "https://www.chess.com"]

[Event "Titled Tuesday Blitz May 24 Late 2022"]
[White "Diaz Rosas, Julio Cesar"]
[Black "Papasimakopoulos, Alexandros"]
[WhiteFideId "5105099"]
[BlackFideId "4244125"]
[WhiteElo "2563"]
[BlackElo "2692"]
[Result "1/2-1/2"]
[Round "04"]
[TimeControl "180+1"]
[Date "2022.05.25"]
[WhiteClock "0:00:26"]
[BlackClock "0:00:20"]

1. d4 {[%clk 0:03:00]}  e6 {[%clk 0:02:55]} 2. Nc3 {[%clk 0:02:59]}  d5 {[%clk 0:02:54]} 3. e4 {[%clk 0:02:58]}  Bb4 {[%clk 0:02:53]} 4. e5 {[%clk 0:02:58]}  b6 {[%clk 0:02:53]} 5. Qg4 {[%clk 0:02:54]}  Bf8 {[%clk 0:02:53]} 6. a4 {[%clk 0:02:48]}  a5 {[%clk 0:02:50]} 7. Nf3 {[%clk 0:02:45]}  Ba6 {[%clk 0:02:47]} 8. Bb5+ {[%clk 0:02:43]}  c6 {[%clk 0:02:46]} 9. Bxa6 {[%clk 0:02:40]}  Nxa6 {[%clk 0:02:47]} 10. Ng5 {[%clk 0:02:37]}  Nb4 {[%clk 0:02:40]} 11. Qe2 {[%clk 0:02:34]}  Nh6 {[%clk 0:02:33]} 12. O-O {[%clk 0:02:32]}  Nf5 {[%clk 0:02:33]} 13. Nf3 {[%clk 0:02:25]}  h5 {[%clk 0:02:26]} 14. Nd1 {[%clk 0:02:23]}  c5 {[%clk 0:02:17]} 15. Bg5 {[%clk 0:02:22]}  Qd7 {[%clk 0:02:14]} 16. c3 {[%clk 0:02:14]}  Nc6 {[%clk 0:02:14]} 17. Ne3 {[%clk 0:02:07]}  Nfe7 {[%clk 0:01:49]} 18. Rfd1 {[%clk 0:01:57]}  cxd4 {[%clk 0:01:44]} 19. Nxd4 {[%clk 0:01:46]}  Nxd4 {[%clk 0:01:27]} 20. cxd4 {[%clk 0:01:44]}  Ng6 {[%clk 0:01:23]} 21. f4 {[%clk 0:01:44]}  Be7 {[%clk 0:01:20]} 22. Bxe7 {[%clk 0:01:38]}  Nxe7 {[%clk 0:01:17]} 23. Rdc1 {[%clk 0:01:35]}  g6 {[%clk 0:01:16]} 24. Rc3 {[%clk 0:01:25]}  Kf8 {[%clk 0:01:13]} 25. b3 {[%clk 0:01:23]}  Rc8 {[%clk 0:01:12]} 26. Rac1 {[%clk 0:01:23]}  Rxc3 {[%clk 0:01:13]} 27. Rxc3 {[%clk 0:01:24]}  Kg7 {[%clk 0:01:13]} 28. Qc2 {[%clk 0:01:23]}  Rc8 {[%clk 0:01:12]} 29. Kf2 {[%clk 0:01:23]}  Rxc3 {[%clk 0:01:09]} 30. Qxc3 {[%clk 0:01:24]}  b5 {[%clk 0:01:10]} 31. Qxa5 {[%clk 0:01:21]}  bxa4 {[%clk 0:01:09]} 32. bxa4 {[%clk 0:01:21]}  Nc6 {[%clk 0:00:55]} 33. Qb6 {[%clk 0:01:14]}  Ne7 {[%clk 0:00:48]} 34. Qc5 {[%clk 0:01:12]}  Qb7 {[%clk 0:00:46]} 35. Nc2 {[%clk 0:01:05]}  Qb3 {[%clk 0:00:37]} 36. a5 {[%clk 0:01:02]}  Nf5 {[%clk 0:00:36]} 37. a6 {[%clk 0:01:01]}  Qd3 {[%clk 0:00:35]} 38. a7 {[%clk 0:00:58]}  Qd2+ {[%clk 0:00:35]} 39. Kf1 {[%clk 0:00:57]}  Qd1+ {[%clk 0:00:20]} 40. Kf2 {[%clk 0:00:41]}  Qd2+ {[%clk 0:00:20]} 41. Kf1 {[%clk 0:00:37]}  Qd1+ {[%clk 0:00:20]} 42. Kf2 {[%clk 0:00:26]}  Qd2+ {[%clk 0:00:20]} 1/2-1/2


[Site "https://www.chess.com"]

[Event "Titled Tuesday Blitz May 24 Late 2022"]
[White "Domingo Nunez, Ruben"]
[Black "Rostovtsev, Dmitry"]
[WhiteFideId "22245570"]
[BlackFideId "34278320"]
[WhiteElo "2376"]
[BlackElo "2274"]
[Result "1-0"]
[Round "04"]
[TimeControl "180+1"]
[Date "2022.05.24"]
[WhiteClock "0:00:03"]
[BlackClock "0:00:10"]

1. d4 {[%clk 0:03:00]}  Nf6 {[%clk 0:02:59]} 2. g3 {[%clk 0:02:59]}  e6 {[%clk 0:02:58]} 3. Bg2 {[%clk 0:03:00]}  d5 {[%clk 0:02:58]} 4. Nf3 {[%clk 0:03:00]}  c5 {[%clk 0:02:56]} 5. c3 {[%clk 0:03:00]}  Nc6 {[%clk 0:02:56]} 6. O-O {[%clk 0:03:00]}  Bd6 {[%clk 0:02:57]} 7. Re1 {[%clk 0:02:57]}  O-O {[%clk 0:02:56]} 8. Na3 {[%clk 0:02:56]}  Ne4 {[%clk 0:02:51]} 9. Nc2 {[%clk 0:02:50]}  f5 {[%clk 0:02:50]} 10. Be3 {[%clk 0:02:28]}  c4 {[%clk 0:02:46]} 11. Qc1 {[%clk 0:02:23]}  b5 {[%clk 0:02:44]} 12. Bf4 {[%clk 0:02:18]}  a5 {[%clk 0:02:42]} 13. Bxd6 {[%clk 0:01:21]}  Qxd6 {[%clk 0:02:43]} 14. Ng5 {[%clk 0:01:21]}  b4 {[%clk 0:02:35]} 15. f3 {[%clk 0:01:19]}  Nxg5 {[%clk 0:02:33]} 16. Qxg5 {[%clk 0:01:19]}  f4 {[%clk 0:02:19]} 17. g4 {[%clk 0:00:56]}  h6 {[%clk 0:01:41]} 18. Qh4 {[%clk 0:00:55]}  e5 {[%clk 0:01:41]} 19. Rad1 {[%clk 0:00:39]}  g5 {[%clk 0:01:27]} 20. Qf2 {[%clk 0:00:39]}  Re8 {[%clk 0:01:14]} 21. dxe5 {[%clk 0:00:38]}  Qxe5 {[%clk 0:01:12]} 22. Qc5 {[%clk 0:00:38]}  Ne7 {[%clk 0:00:58]} 23. e4 {[%clk 0:00:33]}  Bb7 {[%clk 0:00:25]} 24. exd5 {[%clk 0:00:32]}  Qg7 {[%clk 0:00:25]} 25. d6 {[%clk 0:00:20]}  Ng6 {[%clk 0:00:26]} 26. Qxc4+ {[%clk 0:00:19]}  Kh7 {[%clk 0:00:25]} 27. Nd4 {[%clk 0:00:18]}  Nh4 {[%clk 0:00:20]} 28. Qd3+ {[%clk 0:00:18]}  Kh8 {[%clk 0:00:20]} 29. Ne6 {[%clk 0:00:14]}  Qf6 {[%clk 0:00:19]} 30. d7 {[%clk 0:00:12]}  Red8 {[%clk 0:00:14]} 31. Nxd8 {[%clk 0:00:11]}  Rxd8 {[%clk 0:00:15]} 32. Re8+ {[%clk 0:00:12]}  Kg7 {[%clk 0:00:16]} 33. Rxd8 {[%clk 0:00:11]}  Qxd8 {[%clk 0:00:16]} 34. Qd4+ {[%clk 0:00:12]}  Kf7 {[%clk 0:00:16]} 35. Re1 {[%clk 0:00:08]}  Bxf3 {[%clk 0:00:11]} 36. Qc4+ {[%clk 0:00:06]}  Kg7 {[%clk 0:00:10]} 37. Qd4+ {[%clk 0:00:05]}  Kf7 {[%clk 0:00:09]} 38. Bf1 {[%clk 0:00:04]}  Bxg4 {[%clk 0:00:07]} 39. Bc4+ {[%clk 0:00:04]}  Kg6 {[%clk 0:00:07]} 40. Qd6+ {[%clk 0:00:02]}  Kh5 {[%clk 0:00:08]} 41. Bf7+ {[%clk 0:00:02]}  Ng6 {[%clk 0:00:08]} 42. Qxg6+ {[%clk 0:00:02]}  Kh4 {[%clk 0:00:09]} 43. Qxh6+ {[%clk 0:00:03]}  Bh5 {[%clk 0:00:10]} 44. Qxh5# {[%clk 0:00:03]} 1-0


[Site "https://www.chess.com"]

[Event "Titled Tuesday Blitz May 24 Late 2022"]
[White "Dudzinski, Pawel"]
[Black "Arnold, Ken"]
[WhiteFideId "1117890"]
[BlackFideId "2056836"]
[WhiteElo "2011"]
[BlackElo "2290"]
[Result "0-1"]
[Round "04"]
[TimeControl "180+1"]
[Date "2022.05.25"]
[WhiteClock "0:00:08"]
[BlackClock "0:00:23"]

1. e4 {[%clk 0:02:56]}  c6 {[%clk 0:03:00]} 2. d4 {[%clk 0:02:31]}  d5 {[%clk 0:02:58]} 3. exd5 {[%clk 0:02:31]}  cxd5 {[%clk 0:02:58]} 4. Bd3 {[%clk 0:02:32]}  Nf6 {[%clk 0:02:58]} 5. h3 {[%clk 0:02:31]}  Nc6 {[%clk 0:02:59]} 6. c3 {[%clk 0:02:27]}  g6 {[%clk 0:02:59]} 7. Nf3 {[%clk 0:02:27]}  Bg7 {[%clk 0:02:59]} 8. O-O {[%clk 0:02:28]}  O-O {[%clk 0:02:59]} 9. Bf4 {[%clk 0:02:22]}  b6 {[%clk 0:02:54]} 10. Ne5 {[%clk 0:02:19]}  Bb7 {[%clk 0:02:52]} 11. Nxc6 {[%clk 0:02:17]}  Bxc6 {[%clk 0:02:51]} 12. Re1 {[%clk 0:02:18]}  e6 {[%clk 0:02:50]} 13. a4 {[%clk 0:02:16]}  a5 {[%clk 0:02:50]} 14. Na3 {[%clk 0:02:12]}  Qd7 {[%clk 0:02:48]} 15. Nb5 {[%clk 0:02:12]}  Rfc8 {[%clk 0:02:33]} 16. f3 {[%clk 0:02:07]}  Ne8 {[%clk 0:02:30]} 17. Qd2 {[%clk 0:02:05]}  Bf8 {[%clk 0:02:27]} 18. Qe2 {[%clk 0:02:00]}  Nd6 {[%clk 0:02:26]} 19. Nxd6 {[%clk 0:01:48]}  Bxd6 {[%clk 0:02:24]} 20. Bxd6 {[%clk 0:01:48]}  Qxd6 {[%clk 0:02:25]} 21. Bb5 {[%clk 0:01:49]}  Ra7 {[%clk 0:02:20]} 22. Bxc6 {[%clk 0:01:44]}  Qxc6 {[%clk 0:02:19]} 23. Ra3 {[%clk 0:01:44]}  Rb7 {[%clk 0:02:17]} 24. Rea1 {[%clk 0:01:40]}  Rcb8 {[%clk 0:02:06]} 25. Rb3 {[%clk 0:01:40]}  b5 {[%clk 0:02:04]} 26. axb5 {[%clk 0:01:38]}  Rxb5 {[%clk 0:02:03]} 27. Rxb5 {[%clk 0:01:35]}  Rxb5 {[%clk 0:02:03]} 28. Kf2 {[%clk 0:01:33]}  Qb6 {[%clk 0:02:02]} 29. Ra2 {[%clk 0:01:33]}  e5 {[%clk 0:02:00]} 30. Qxe5 {[%clk 0:01:20]}  Rxb2+ {[%clk 0:01:59]} 31. Rxb2 {[%clk 0:01:21]}  Qxb2+ {[%clk 0:01:59]} 32. Kg3 {[%clk 0:01:22]}  Qxc3 {[%clk 0:01:56]} 33. Qxd5 {[%clk 0:01:22]}  Qb4 {[%clk 0:01:34]} 34. Kg4 {[%clk 0:01:06]}  a4 {[%clk 0:01:31]} 35. Kg5 {[%clk 0:01:03]}  Qe7+ {[%clk 0:01:29]} 36. Kf4 {[%clk 0:00:57]}  a3 {[%clk 0:01:25]} 37. g4 {[%clk 0:00:50]}  Kg7 {[%clk 0:00:52]} 38. g5 {[%clk 0:00:46]}  h6 {[%clk 0:00:44]} 39. h4 {[%clk 0:00:45]}  hxg5+ {[%clk 0:00:43]} 40. hxg5 {[%clk 0:00:46]}  Qc7+ {[%clk 0:00:42]} 41. Ke4 {[%clk 0:00:39]}  Qc2+ {[%clk 0:00:36]} 42. Ke3 {[%clk 0:00:39]}  a2 {[%clk 0:00:33]} 43. Qe5+ {[%clk 0:00:39]}  Kh7 {[%clk 0:00:29]} 44. Qe7 {[%clk 0:00:18]}  Qb3+ {[%clk 0:00:25]} 45. Kf4 {[%clk 0:00:17]}  a1=Q {[%clk 0:00:24]} 46. Qd7 {[%clk 0:00:11]}  Qc1+ {[%clk 0:00:23]} 47. Ke4 {[%clk 0:00:09]}  Qe6+ {[%clk 0:00:22]} 48. Qxe6 {[%clk 0:00:08]}  fxe6 {[%clk 0:00:23]} 0-1


[Site "https://www.chess.com"]

[Event "Titled Tuesday Blitz May 24 Late 2022"]
[White "Estrada Nieto, Julian"]
[Black "Kruckenhauser, Arthur"]
[WhiteFideId "5101018"]
[BlackFideId "1642812"]
[WhiteElo "2252"]
[BlackElo "2243"]
[Result "0-1"]
[Round "04"]
[TimeControl "180+1"]
[Date "2022.05.25"]
[WhiteClock "0:00:03"]
[BlackClock "0:00:56"]

1. e4 {[%clk 0:03:00]}  g6 {[%clk 0:02:53]} 2. d4 {[%clk 0:03:00]}  Bg7 {[%clk 0:02:54]} 3. Nf3 {[%clk 0:03:00]}  c5 {[%clk 0:02:53]} 4. d5 {[%clk 0:02:59]}  d6 {[%clk 0:02:52]} 5. Nc3 {[%clk 0:02:59]}  a6 {[%clk 0:02:50]} 6. a4 {[%clk 0:02:58]}  Nf6 {[%clk 0:02:50]} 7. Be2 {[%clk 0:02:55]}  O-O {[%clk 0:02:51]} 8. O-O {[%clk 0:02:54]}  Bg4 {[%clk 0:02:51]} 9. Nd2 {[%clk 0:02:48]}  Bxe2 {[%clk 0:02:51]} 10. Qxe2 {[%clk 0:02:48]}  Nbd7 {[%clk 0:02:50]} 11. a5 {[%clk 0:02:45]}  Ne8 {[%clk 0:02:48]} 12. Nc4 {[%clk 0:02:44]}  Nc7 {[%clk 0:02:48]} 13. Bf4 {[%clk 0:02:33]}  Nb5 {[%clk 0:02:47]} 14. Na4 {[%clk 0:02:02]}  Qc7 {[%clk 0:02:30]} 15. c3 {[%clk 0:02:00]}  Rae8 {[%clk 0:02:28]} 16. Nab6 {[%clk 0:01:54]}  Nxb6 {[%clk 0:02:25]} 17. axb6 {[%clk 0:01:46]}  Qd7 {[%clk 0:02:24]} 18. Rad1 {[%clk 0:01:41]}  Qd8 {[%clk 0:02:23]} 19. e5 {[%clk 0:01:37]}  dxe5 {[%clk 0:02:20]} 20. Bxe5 {[%clk 0:01:37]}  Nd6 {[%clk 0:02:20]} 21. Bxg7 {[%clk 0:01:29]}  Kxg7 {[%clk 0:02:21]} 22. Ne5 {[%clk 0:01:14]}  Nc8 {[%clk 0:02:05]} 23. Qc4 {[%clk 0:01:05]}  Nxb6 {[%clk 0:02:02]} 24. Qxc5 {[%clk 0:01:04]}  Nd7 {[%clk 0:02:02]} 25. Nxd7 {[%clk 0:01:01]}  Qxd7 {[%clk 0:02:02]} 26. Rfe1 {[%clk 0:01:01]}  Qd6 {[%clk 0:02:00]} 27. Qd4+ {[%clk 0:00:59]}  Kg8 {[%clk 0:01:59]} 28. Re3 {[%clk 0:00:57]}  Rc8 {[%clk 0:01:55]} 29. Rde1 {[%clk 0:00:51]}  Rc7 {[%clk 0:01:55]} 30. h4 {[%clk 0:00:50]}  h5 {[%clk 0:01:53]} 31. c4 {[%clk 0:00:47]}  Rfc8 {[%clk 0:01:51]} 32. b3 {[%clk 0:00:46]}  b5 {[%clk 0:01:51]} 33. Rc3 {[%clk 0:00:36]}  a5 {[%clk 0:01:43]} 34. Re5 {[%clk 0:00:34]}  a4 {[%clk 0:01:40]} 35. bxa4 {[%clk 0:00:26]}  Rxc4 {[%clk 0:01:39]} 36. Rxc4 {[%clk 0:00:25]}  Rxc4 {[%clk 0:01:40]} 37. Qe3 {[%clk 0:00:24]}  Rxa4 {[%clk 0:01:38]} 38. g3 {[%clk 0:00:21]}  Ra3 {[%clk 0:01:33]} 39. Qe2 {[%clk 0:00:18]}  b4 {[%clk 0:01:29]} 40. Rxe7 {[%clk 0:00:16]}  Qxd5 {[%clk 0:01:26]} 41. Re8+ {[%clk 0:00:13]}  Kh7 {[%clk 0:01:26]} 42. Qb2 {[%clk 0:00:12]}  Rc3 {[%clk 0:01:26]} 43. Qxb4 {[%clk 0:00:09]}  Qd2 {[%clk 0:00:59]} 44. Qe7 {[%clk 0:00:04]}  Rc1+ {[%clk 0:00:59]} 45. Kg2 {[%clk 0:00:04]}  Qd5+ {[%clk 0:00:59]} 46. f3 {[%clk 0:00:03]}  Rc2+ {[%clk 0:00:57]} 47. Kh3 {[%clk 0:00:03]}  Qf5+ {[%clk 0:00:56]} 0-1


[Site "https://www.chess.com"]